bitfinex-derivatives/quotes_SOLF0:USTF0_20260215
["timestamp","ask_amount","ask_price","bid_price","bid_amount"]
[1771185860833,7.75022048,84.996,84.953,3.66834101]
[1771185861033,7.75022048,84.995,84.953,3.66834101]
[1771185861235,7.75022048,84.994,84.953,3.66834101]
[1771185861434,7.75022048,84.993,84.953,3.66834101]
[1771185861732,3.73755578,84.998,84.953,3.66834101]
[1771185861929,142.24902114,86.037,84.96,7.615779]
[1771185861930,3.73755578,85.007,84.96,7.615779]
[1771185862139,7.75073318,85.006,84.96,7.615779]
[1771185862330,3.73755578,85.007,84.96,7.615779]
[1771185862834,3.73755578,85.007,84.963,10.5996]
[1771185863737,3.73755578,85.005,84.953,10.6008]
[1771185864032,3.73755578,85.005,84.942,3.66834101]
[1771185864732,93.66,85.028,84.943,10.6021]
[1771185864733,3.73755578,84.995,84.943,10.6021]
[1771185865129,3.73755578,84.995,84.943,14.27044101]
[1771185865334,3.73755578,84.995,84.944,3.66834101]
[1771185865534,3.73755578,84.995,84.956,10.6005]
[1771185866738,7.75073318,85.027,84.94,7.615779]
[1771185866739,3.73755578,85.013,84.959,10.6]
[1771185867336,3.73755578,85.01,84.957,3.66834101]
[1771185867635,3.73755578,85.01,84.94,7.615779]
[1771185867636,3.73755578,85.01,84.949,10.6014]
[1771185868437,3.73755578,85.01,84.95,3.66834101]
[1771185869342,3.73755578,85.006,84.94,7.615779]
[1771185870545,3.73755578,84.985,84.936,3.66834101]
[1771185870939,3.73755578,84.985,84.921,3.66834101]
[1771185871741,3.73755578,84.982,84.924,10.6045]
[1771185872542,3.73755578,84.967,84.901,3.66834101]
[1771185873847,10.6,84.961,84.906,10.6067]
[1771185874043,10.6,84.961,84.907,3.66834101]
[1771185874244,14.33755578,84.961,84.907,3.66834101]
[1771185874543,14.33755578,84.961,84.9,7.615779]
[1771185874544,3.73755578,84.961,84.912,3.66834101]
[1771185875648,3.73755578,84.979,84.921,3.66834101]
[1771185877244,10.5984,84.973,84.923,14.27294101]
[1771185878844,3.73755578,84.972,84.923,14.27294101]
[1771185879039,3.73755578,84.972,84.927,3.66834101]
[1771185881849,14.33625578,84.971,84.927,3.66834101]
[1771185883052,3.73755578,84.961,84.91,11.28412001]
[1771185883350,3.73755578,84.961,84.911,3.92765029]
[1771185884343,3.77150501,84.959,84.911,3.92765029]
[1771185885148,3.77150501,84.954,84.902,10.6072]
[1771185885544,3.77150501,84.954,84.896,3.73286907]
[1771185885738,10.6024,84.942,84.896,3.73286907]
[1771185886542,3.77150501,84.941,84.89,7.615779]
[1771185886843,3.77150501,84.934,84.869,3.73286907]
[1771185887343,14.37480501,84.934,84.88,3.73286907]
[1771185887545,3.77150501,84.933,84.88,3.73286907]
[1771185887851,3.77150501,84.933,84.89,2.84096994]
[1771185889445,10.602,84.944,84.9,2.84096994]
[1771185889745,3.77150501,84.943,84.9,2.84096994]
[1771185890846,14.37400501,84.941,84.9,2.84096994]
[1771185892647,3.77150501,84.938,84.892,3.73286907]
[1771185892853,3.77150501,84.938,84.88,2.84096994]
[1771185893049,3.77150501,84.929,84.88,2.84096994]
[1771185893552,3.77150501,84.929,84.864,3.73286907]
[1771185893553,3.77150501,84.925,84.87,2.84096994]
[1771185893950,3.77150501,84.925,84.88,2.84096994]
[1771185894345,10.6061,84.912,84.88,2.84096994]
[1771185894655,10.6061,84.912,84.87,2.84096994]
[1771185895249,3.77150501,84.911,84.865,10.6119]
[1771185895451,3.77150501,84.909,84.87,2.84096994]
[1771185895849,10.6063,84.91,84.87,2.84096994]
[1771185896055,10.6063,84.91,84.88,2.84096994]
[1771185896457,10.6069,84.905,84.86,2.84096994]
[1771185897061,3.77150501,84.909,84.86,2.84096994]
[1771185897062,10.6079,84.897,84.86,2.84096994]
[1771185897957,3.77150501,84.894,84.85,2.84096994]
[1771185899149,3.77150501,84.894,84.86,2.84096994]
[1771185900356,3.77150501,84.93,84.88,2.84096994]
[1771185900557,3.77150501,84.93,84.89,2.84096994]
[1771185901953,3.77150501,84.93,84.84,18.20463531]
[1771185901954,3.77150501,84.959,84.9,2.84096994]
[1771185902460,3.77150501,84.942,84.89,2.84096994]
[1771185902659,3.77150501,84.939,84.89,2.84096994]
[1771185903455,3.77150501,84.939,84.845,21.2288]
[1771185903456,3.77150501,84.955,84.901,3.73286907]
[1771185903754,3.77150501,84.955,84.91,2.84096994]
[1771185903952,3.77150501,84.955,84.91,2.83943973]
[1771185905159,3.77150501,84.955,84.92,2.83943973]
[1771185906161,2.83943973,84.97,84.92,2.83943973]
[1771185906349,3.77150501,84.97,84.92,2.83943973]
[1771185906757,3.77150501,84.97,84.93,2.83943973]
[1771185907460,3.77150501,84.985,84.94,2.83943973]
[1771185908552,3.77150501,84.983,84.94,2.83943973]
[1771185910262,3.77150501,85.0,84.95,2.83943973]
[1771185910463,3.77150501,85.0,84.96,2.83943973]
[1771185910661,3.77150501,85.0,84.95,2.83943973]
[1771185911461,3.77150501,84.998,84.95,13.44063973]
[1771185911662,3.77150501,84.998,84.96,2.83943973]
[1771185914954,3.77150501,84.998,84.95,13.44063973]
[1771185915561,3.77150501,84.998,84.96,2.83943973]
[1771185916956,3.98250139,85.011,84.96,2.83943973]
[1771185917363,3.98250139,85.009,84.96,2.83943973]
[1771185917955,1.68250139,85.009,84.961,10.5999]
[1771185918362,1.68250139,85.009,84.962,3.7589358]
[1771185918761,1.68250139,85.009,84.97,2.83943973]
[1771185920067,3.98250139,85.023,84.972,14.3573358]
[1771185920363,3.98250139,85.023,84.98,2.83943973]
[1771185920966,3.98250139,85.023,84.973,3.7589358]
[1771185921764,3.98250139,85.023,84.974,10.5982]
[1771185922961,3.98250139,85.023,84.981,14.3563358]
[1771185923160,3.98250139,85.039,84.99,2.83943973]
[1771185923564,3.98250139,85.039,85.0,2.83943973]
[1771185924773,3.98250139,85.039,84.992,3.7589358]
[1771185926772,3.98250139,85.039,85.0,10.5949]
[1771185927269,3.98250139,85.039,84.992,3.7589358]
[1771185927474,3.98250139,85.039,84.991,10.5961]
[1771185927475,3.98250139,85.039,84.975,3.7589358]
[1771185927674,3.98250139,85.029,84.98,2.83943973]
[1771185928477,3.98250139,85.029,84.98,10.5975]
[1771185930473,3.98250139,85.029,84.987,10.5966]
[1771185930678,3.98250139,85.042,84.991,3.7589358]
[1771185931781,10.59,85.041,84.992,14.3549358]
[1771185932186,10.59,85.041,84.946,93.72]
[1771185932187,3.98250139,85.042,85.0,2.83943973]
[1771185933481,3.98250139,85.042,84.993,3.7589358]
[1771185934387,3.98250139,85.032,84.982,10.5972]
[1771185934587,6.82194112,85.03,84.982,10.5972]
[1771185935189,6.82194112,85.03,84.982,14.3561358]
[1771185935388,3.98250139,85.03,84.99,2.83943973]
[1771185935690,3.98250139,85.041,85.0,2.83943973]
[1771185937790,3.98250139,85.041,85.001,3.7589358]
[1771185938994,14.57280139,85.038,85.001,3.7589358]
[1771185939389,3.98250139,85.037,84.99,2.83943973]
[1771185939789,3.98250139,85.037,84.99,6.59837553]
[1771185939993,3.98250139,85.037,84.991,3.7589358]
[1771185940996,3.98250139,85.019,84.974,10.5982]
[1771185941697,3.98250139,85.012,84.972,3.7589358]
[1771185942092,3.98250139,85.012,84.98,2.83943973]
[1771185942593,3.98250139,85.029,84.98,2.83943973]
[1771185942794,3.98250139,85.023,84.98,2.83943973]
[1771185943197,10.5923,85.022,84.98,2.83943973]
[1771185943394,14.57480139,85.022,84.975,10.5981]
[1771185943997,3.81299313,85.021,84.975,10.5981]
[1771185945300,3.71851985,85.018,84.975,10.5981]
[1771185946400,3.71851985,85.018,84.975,14.46440985]
[1771185946900,3.71851985,85.018,84.97,2.83943973]
[1771185946901,3.71851985,85.018,84.977,10.5979]
[1771185947104,3.71851985,85.018,84.98,2.83943973]
[1771185949306,3.71851985,85.018,84.977,10.5979]
[1771185952300,7.1617203,85.017,84.977,10.5979]
[1771185952502,3.71851985,85.018,84.977,10.5979]
[1771185952701,7.16171695,85.017,84.977,10.5979]
[1771185952902,3.71851985,85.018,84.977,10.5979]
[1771185953203,7.16172365,85.017,84.977,10.5979]
[1771185953401,7.16172365,85.016,84.977,10.5979]
[1771185953605,3.71851985,85.018,84.977,10.5979]
[1771185953802,7.16520953,85.017,84.977,10.5979]
[1771185954003,7.16520953,85.016,84.977,10.5979]
[1771185954199,10.5911,85.032,84.991,3.86630985]
[1771185954402,7.17169606,85.031,85.0,6.70574958]
[1771185954608,3.71851985,85.047,85.01,6.70574958]
[1771185955104,3.71851985,85.073,85.031,3.86630985]
[1771185955904,6.96784071,85.084,85.04,2.83943973]
[1771185956103,3.71851985,85.086,85.04,2.83943973]
[1771185957804,3.71851985,85.085,85.04,2.83943973]
[1771185958009,6.55795958,85.08,85.04,2.83943973]
[1771185958203,6.55795958,85.08,85.031,3.86630985]
[1771185958610,3.71851985,85.08,85.031,3.86630985]
[1771185959704,10.5854,85.078,85.031,3.86630985]
[1771185959899,3.71851985,85.08,85.041,3.86630985]
[1771185960200,3.71851985,85.08,84.981,21.85168355]
[1771185960201,10.5901,85.04,85.001,3.86630985]
[1771185960506,10.5901,85.04,84.945,21.2037]
[1771185960507,2.83943973,85.01,84.96,2.83943973]
[1771185960710,35.36,85.067,84.959,3.86630985]
[1771185960711,2.83943973,85.0,84.959,3.86630985]
[1771185960906,10.5951,85.0,84.96,2.83943973]
[1771185961413,3.71851985,85.009,84.97,2.83943973]
[1771185961811,2.83943973,85.0,84.961,3.86630985]
[1771185962008,3.71851985,84.995,84.921,10.6048]
[1771185962208,3.71851985,84.989,84.9,7.59882731]
[1771185962609,3.71851985,84.963,84.87,7.59882731]
[1771185963711,3.71851985,84.947,84.878,10.6102]
[1771185963910,3.71851985,84.947,84.87,7.60991276]
[1771185964117,3.71851985,84.947,84.871,2.01447713]
[1771185964810,3.71851985,84.973,84.879,2.01909801]
[1771185965112,3.71851985,84.973,84.911,2.01909801]
[1771185965316,3.71851985,84.949,84.891,2.01909801]
[1771185965916,10.602,84.945,84.891,2.01909801]
[1771185966320,3.71851985,84.949,84.891,2.01909801]
[1771185967816,3.71851985,84.965,84.893,2.08400844]
[1771185968413,3.71851985,84.965,84.897,2.08795815]
[1771185968613,3.71851985,84.965,84.911,2.08847171]
[1771185969010,3.71851985,84.965,84.878,93.74]
[1771185969011,3.71851985,84.965,84.891,2.08847171]
[1771185969815,3.71851985,84.965,84.893,2.05966342]
[1771185970220,10.5997,84.963,84.895,2.05966342]
[1771185970610,3.71851985,84.981,84.911,2.06405932]
[1771185971815,3.71851985,84.981,84.925,2.05894407]
[1771185972018,3.71851985,84.998,84.931,2.05894407]
[1771185972318,35.36,85.049,84.931,2.05894407]
[1771185972520,10.717018,85.072,84.91,7.60991276]
[1771185972521,10.717018,85.126,84.991,3.86630985]
[1771185972726,7.60991276,85.12,85.031,3.86630985]
[1771185973414,7.60991276,85.12,85.034,3.78879428]
[1771185973926,249.86380208,85.155,85.051,3.78879428]
[1771185974125,7.60991276,85.14,85.051,3.78879428]
[1771185974518,3.92717575,85.139,85.061,3.78879428]
[1771185975322,14.50667575,85.125,85.061,3.78879428]
[1771185975715,3.92717575,85.124,85.061,3.78879428]
[1771185975916,3.92717575,85.124,85.007,35.36]
[1771185975917,3.92717575,85.154,85.075,14.37439428]
[1771185976121,3.92717575,85.154,85.076,3.78879428]
[1771185976322,3.92717575,85.154,85.081,3.78879428]
[1771185976723,3.92717575,85.149,85.081,3.78879428]
[1771185977926,3.92717575,85.149,85.082,3.78879428]
[1771185978123,3.92717575,85.166,85.09,7.60991276]
[1771185978425,3.92717575,85.166,85.091,3.78879428]
[1771185978824,3.92717575,85.166,85.094,3.78879428]
[1771185979825,3.92717575,85.164,85.101,3.78879428]
[1771185980221,3.92717575,85.164,85.016,35.36]
[1771185980222,3.92717575,85.164,85.08,10.5851]
[1771185980420,3.92717575,85.164,85.07,7.60991276]
[1771185980421,3.92717575,85.162,85.081,3.78879428]
[1771185981029,3.92717575,85.162,85.09,3.78879428]
[1771185981224,3.92717575,85.162,85.091,3.78879428]
[1771185981824,3.92717575,85.162,85.095,3.78879428]
[1771185982618,3.92717575,85.162,85.099,3.78879428]
[1771185984739,3.92717575,85.162,85.1,10.5825]
[1771185985036,3.92717575,85.162,85.101,3.78879428]
[1771185985337,3.92717575,85.187,85.101,3.78879428]
[1771185985533,3.92717575,85.187,85.115,3.78879428]
[1771185986441,3.92717575,85.204,85.121,3.78879428]
[1771185987032,3.92717575,85.204,85.136,3.78879428]
[1771185987537,3.92717575,85.204,85.141,3.78879428]
[1771185987938,3.92717575,85.204,85.111,3.78879428]
[1771185988141,3.92717575,85.2,85.13,3.78879428]
[1771185988340,3.92717575,85.2,85.131,3.78879428]
[1771185988844,3.92717575,85.2,85.146,3.78879428]
[1771185989033,3.92717575,85.2,85.13,11.39870704]
[1771185989238,3.92717575,85.2,85.131,3.78879428]
[1771185989434,3.92717575,85.2,85.138,10.5778]
[1771185990640,3.92717575,85.2,85.141,3.78879428]
[1771185991440,3.92717575,85.216,85.155,14.36449428]
[1771185991634,3.92717575,85.216,85.156,3.78879428]
[1771185991840,3.92717575,85.216,85.135,3.78879428]
[1771185992235,3.92717575,85.233,85.15,3.78879428]
[1771185992438,3.92717575,85.233,85.151,3.78879428]
[1771185992838,658.86155175,85.288,85.163,3.78879428]
[1771185992839,3.92717575,85.23,85.163,3.78879428]
[1771185993045,3.92717575,85.23,85.171,3.78879428]
[1771185993240,3.92717575,85.269,85.171,3.78879428]
[1771185993456,3.92717575,85.247,85.171,3.78879428]
[1771185993647,3.92717575,85.247,85.151,3.78879428]
[1771185994047,3.92717575,85.229,85.151,3.78879428]
[1771185995040,3.92717575,85.211,85.131,3.78879428]
[1771185995740,93.74,85.231,85.131,3.78879428]
[1771185995741,3.92717575,85.206,85.131,3.78879428]
[1771185996043,3.92717575,85.233,85.151,3.78879428]
[1771185996443,3.92717575,85.233,85.171,3.78879428]
[1771185997844,3.92717575,85.233,85.184,10.5721]
[1771185998437,3.92717575,85.248,85.173,3.78879428]
[1771185998642,1.62717575,85.248,85.173,3.78879428]
[1771185999044,7.60991276,85.27,85.176,10.5731]
[1771185999947,7.60991276,85.27,85.173,3.78879428]
[1771185999948,7.60991276,85.23,85.149,3.78879428]
[1771186000147,124.24,85.229,85.149,3.78879428]
[1771186000547,3.92717575,85.205,85.149,3.78879428]
[1771186000744,3.92717575,85.205,85.142,10.5773]
[1771186001146,3.92717575,85.229,85.153,3.78879428]
[1771186001444,3.92717575,85.229,85.161,3.78879428]
[1771186001853,3.92717575,85.249,85.181,3.78879428]
[1771186002753,3.92717575,85.249,85.192,10.5711]
[1771186004549,3.92717575,85.249,85.181,3.78879428]
[1771186004550,3.92717575,85.249,85.208,10.5691]
[1771186004856,3.99493443,85.282,85.208,10.5691]
[1771186005457,14.55633443,85.272,85.215,10.5682]
[1771186005756,3.99493443,85.271,85.209,3.92001652]
[1771186006752,3.99493443,85.268,85.21,10.5689]
[1771186009357,3.99493443,85.264,85.21,10.5689]
[1771186009754,3.99493443,85.264,85.154,35.36]
[1771186009755,3.99493443,85.264,85.189,3.92001652]
[1771186009958,3.99493443,85.262,85.189,3.92001652]
[1771186010456,3.99493443,85.259,85.19,13.08]
[1771186010754,3.99493443,85.259,85.192,10.5711]
[1771186011255,3.99493443,85.258,85.192,10.5711]
[1771186012855,3.99493443,85.258,85.19,20.68991276]
[1771186013247,3.99493443,85.258,85.19,13.08]
[1771186013657,10.5658,85.236,85.19,13.08]
[1771186014357,3.99493443,85.238,85.19,13.08]
[1771186014553,10.5646,85.245,85.192,3.92001652]
[1771186015252,116.81493443,85.258,85.196,10.5706]
[1771186015253,10.5635,85.254,85.196,10.5706]
[1771186015463,10.5635,85.254,85.197,3.92001652]
[1771186016860,3.99493443,85.284,85.211,3.92001652]
[1771186017162,3.99493443,85.282,85.211,3.92001652]
[1771186017662,3.99493443,85.282,85.228,10.5666]
[1771186018466,250.04813334,85.285,85.238,3.92001652]
[1771186019365,250.04813334,85.285,85.23,7.60991276]
[1771186019366,10.5581,85.298,85.242,3.92001652]
[1771186019863,3.99493443,85.304,85.253,14.48351652]
[1771186020067,93.64,85.329,85.27,7.60991276]
[1771186020262,3.99493443,85.332,85.213,21.137]
[1771186020263,3.99493443,85.332,85.259,3.92001652]
[1771186020464,3.99493443,85.316,85.262,10.5625]
[1771186020670,3.99493443,85.316,85.259,3.92001652]
[1771186020866,93.64,85.327,85.259,3.92001652]
[1771186021569,3.99493443,85.333,85.259,3.92001652]
[1771186021866,3.99493443,85.333,85.271,3.92001652]
[1771186022566,3.99493443,85.333,85.224,164.3792]
[1771186022567,3.99493443,85.289,85.163,93.62]
[1771186022775,3.99493443,85.305,85.23,7.60991276]
[1771186022970,93.62,85.306,85.159,164.5034]
[1771186022971,3.99493443,85.272,85.211,10.5688]
[1771186023971,3.99493443,85.27,85.201,10.57]
[1771186024376,10.5633,85.256,85.201,10.57]
[1771186024579,3.99493443,85.255,85.19,13.08]
[1771186025769,10.5669,85.227,85.19,13.08]
[1771186025972,3.99493443,85.232,85.19,13.08]
[1771186026475,10.5678,85.219,85.171,3.89275409]
[1771186026663,3.99493443,85.232,85.14,7.55216746]
[1771186026865,3.99493443,85.219,85.13,3.92001652]
[1771186027264,3.99493443,85.217,85.13,3.92001652]
[1771186027873,10.5706,85.197,85.13,3.92001652]
[1771186028473,127.14,85.218,85.13,3.92001652]
[1771186028474,3.99493443,85.189,85.13,3.92001652]
[1771186028874,3.99493443,85.216,85.14,7.55216746]
[1771186029070,127.14,85.218,85.121,3.92001652]
[1771186029071,3.99493443,85.209,85.121,3.92001652]
[1771186029474,3.99493443,85.193,85.121,14.49991652]
[1771186030169,3.99493443,85.188,85.121,3.92001652]
[1771186030370,3.99493443,85.186,85.102,3.82362393]
[1771186030571,3.99493443,85.186,85.044,21.23919069]
[1771186030572,3.99493443,85.169,85.043,3.83122719]
[1771186030871,3.99493443,85.169,85.03,164.7542]
[1771186030872,3.99493443,85.169,85.087,10.5841]
[1771186031074,3.99493443,85.159,85.072,3.83122719]
[1771186031269,93.64,85.158,85.072,3.83122719]
[1771186031571,3.99493443,85.157,85.081,3.83847358]
[1771186031973,10.5732,85.176,85.101,3.73194729]
[1771186032874,10.5737,85.172,85.101,3.73194729]
[1771186033075,3.99493443,85.171,85.101,3.73194729]
[1771186033870,3.99493443,85.171,85.102,13.50901011]
[1771186034874,4.26175972,85.22,85.141,3.68884926]
[1771186035075,4.26175972,85.259,85.18,11.24101672]
[1771186035475,4.26175972,85.246,85.18,11.24101672]
[1771186035777,4.26175972,85.239,85.16,7.55216746]
[1771186035973,10.5661,85.233,85.161,3.66601159]
[1771186036174,4.26175972,85.239,85.161,3.66601159]
[1771186037472,14.82455972,85.26,85.183,3.52193904]
[1771186038473,93.68,85.272,85.183,3.52193904]
[1771186038778,164.1206,85.359,85.14,7.55216746]
[1771186038779,4.26175972,85.28,85.201,3.52169545]
[1771186038978,4.26175972,85.28,85.22,7.55216746]
[1771186039178,4.26175972,85.299,85.24,7.55216746]
[1771186040085,4.26175972,85.299,85.23,7.55216746]
[1771186041489,4.26175972,85.329,85.23,7.55216746]
[1771186041674,4.26175972,85.319,85.231,3.40063937]
[1771186041879,4.26175972,85.315,85.234,3.40063937]
[1771186042274,4.26175972,85.315,85.25,7.55216746]
[1771186042481,4.26175972,85.315,85.251,3.4003838]
[1771186042684,4.26175972,85.349,85.251,3.4003838]
[1771186042981,4.26175972,85.336,85.253,3.40038684]
[1771186043379,7.55216746,85.37,85.271,3.40012171]
[1771186043582,4.26175972,85.357,85.291,3.10710927]
[1771186043980,4.26175972,85.355,85.272,10.5612]
[1771186044382,4.26175972,85.355,85.271,3.10710927]
[1771186044587,4.26175972,85.355,85.27,7.55216746]
[1771186044588,4.26175972,85.355,85.3,7.55216746]
[1771186045487,4.26175972,85.389,85.315,3.06924615]
[1771186046889,4.26175972,85.386,85.315,3.06924615]
[1771186047495,4.26175972,85.381,85.315,3.06924615]
[1771186048086,10.5479,85.38,85.315,3.06924615]
[1771186049592,10.5459,85.396,85.321,3.01573948]
[1771186049788,93.64,85.405,85.284,93.6]
[1771186049789,4.26175972,85.405,85.34,10.56790694]
[1771186049994,4.26175972,85.405,85.34,3.01573948]
[1771186050291,4.26175972,85.378,85.301,3.01573948]
[1771186050694,2.03857476,85.413,85.301,3.01573948]
[1771186050695,4.26175972,85.373,85.301,3.01573948]
[1771186052897,4.26175972,85.37,85.301,3.01573948]
[1771186053196,4.26175972,85.39,85.32,7.55216746]
[1771186053498,4.26175972,85.39,85.301,3.01573948]
[1771186053499,4.26175972,85.388,85.301,3.01573948]
[1771186054799,4.26175972,85.388,85.3,7.55216746]
[1771186054800,4.26175972,85.385,85.303,3.0272498]
[1771186055294,4.26175972,85.378,85.305,3.0272498]
[1771186055896,4.26175972,85.377,85.3,7.55216746]
[1771186056098,4.26175972,85.377,85.289,2.88695296]
[1771186056699,4.26175972,85.355,85.237,2.88674951]
[1771186056899,4.26175972,85.355,85.261,2.88674951]
[1771186057902,4.26175972,85.355,85.26,7.55216746]
[1771186057903,10.5536,85.334,85.266,2.74121793]
[1771186058406,10.5536,85.334,85.267,13.3027269]
[1771186058802,10.5536,85.334,85.268,2.74104391]
[1771186059204,4.26175972,85.369,85.281,2.74104391]
[1771186060302,4.26175972,85.358,85.288,10.5592]
[1771186061805,4.26175972,85.35,85.288,10.5592]
[1771186062117,4.26175972,85.349,85.263,2.78402901]
[1771186062802,4.26175972,85.336,85.268,10.5617]
[1771186063408,14.69841405,85.335,85.268,10.5617]
[1771186063706,4.14491405,85.329,85.263,2.78402901]
[1771186063901,4.14491405,85.319,85.263,2.78402901]
[1771186064710,3.97164646,85.316,85.241,3.0556361]
[1771186065115,3.97164646,85.316,85.244,10.5647]
[1771186066811,7.55216746,85.33,85.244,10.5647]
[1771186066812,3.97164646,85.312,85.244,10.5647]
[1771186067610,10.5566,85.31,85.251,10.5638]
[1771186068617,3.97164646,85.312,85.251,10.5638]
[1771186068801,3.97164646,85.312,85.255,10.5633]
[1771186069406,3.97164646,85.31,85.252,9.77]
[1771186070007,3.97164646,85.31,85.252,20.3336]
[1771186071615,3.97164646,85.308,85.252,9.77]
[1771186073809,3.97164646,85.306,85.252,9.77]
[1771186074718,3.97164646,85.306,85.253,10.5636]
[1771186075516,10.555,85.323,85.263,3.07938319]
[1771186075718,3.97164646,85.322,85.263,3.07938319]
[1771186076818,3.97164646,85.319,85.267,10.5618]
[1771186078519,14.52834646,85.309,85.263,3.07938319]
[1771186080512,10.5577,85.301,85.252,9.77]
[1771186082014,7.55216746,85.34,85.252,9.77]
[1771186082015,3.97164646,85.296,85.252,9.77]
[1771186082417,3.97164646,85.312,85.253,2.89234345]
[1771186083018,3.97164646,85.328,85.267,2.89234828]
[1771186083218,3.97164646,85.328,85.271,2.89234828]
[1771186084123,3.97164646,85.326,85.271,2.89234828]
[1771186084415,3.97164646,85.326,85.252,9.77]
[1771186084816,3.97164646,85.303,85.252,9.77]
[1771186085419,3.97164646,85.301,85.252,9.77]
[1771186085921,3.97164646,85.301,85.222,2.8773287]
[1771186086313,3.97164646,85.301,85.22,7.54066507]
[1771186086618,3.97164646,85.299,85.226,2.8773287]
[1771186087417,10.5612,85.273,85.226,2.8773287]
[1771186088516,10.5612,85.273,85.174,21.1467]
[1771186088517,3.97164646,85.265,85.208,2.86374588]
[1771186089323,7.54066507,85.3,85.213,2.86374902]
[1771186089324,10.561,85.274,85.213,2.86374902]
[1771186089716,3.97164646,85.282,85.213,2.86374902]
[1771186090319,3.97164646,85.31,85.231,2.84862073]
[1771186091113,3.97164646,85.292,85.235,10.5658]
[1771186092721,3.97164646,85.287,85.235,10.5658]
[1771186094022,10.558,85.299,85.247,2.8735901]
[1771186094225,4.2491659,85.298,85.247,2.8735901]
[1771186094624,4.2491659,85.294,85.247,2.8735901]
[1771186094820,4.2491659,85.294,85.24,7.54066507]
[1771186095615,4.2491659,85.294,85.24,10.40135395]
[1771186095820,4.2491659,85.339,85.241,2.86068888]
[1771186096018,4.2491659,85.322,85.263,2.86068888]
[1771186097217,4.2491659,85.348,85.28,10.40117494]
[1771186097628,4.2491659,85.343,85.284,2.8584386]
[1771186097829,4.2491659,85.359,85.301,2.8584386]
[1771186098820,4.2491659,85.377,85.301,2.8584386]
[1771186099630,4.2491659,85.377,85.32,7.54066507]
[1771186099829,10.5485,85.375,85.32,7.54066507]
[1771186101121,4.2491659,85.369,85.311,2.81367494]
[1771186101635,4.2491659,85.369,85.295,2.79338118]
[1771186102733,4.2491659,85.368,85.295,0.49338118]
[1771186103931,4.2491659,85.355,85.295,0.49338118]
[1771186104735,4.2491659,85.355,85.298,10.558]
[1771186105933,7.54066507,85.38,85.27,93.56]
[1771186105934,10.5462,85.394,85.331,0.60196874]
[1771186106130,4.2491659,85.393,85.315,0.60196874]
[1771186106329,4.2491659,85.389,85.31,7.54066507]
[1771186106531,4.2491659,85.387,85.31,7.54066507]
[1771186106933,4.2491659,85.368,85.299,10.5579]
[1771186107238,4.2491659,85.368,85.3,0.60335969]
[1771186107838,4.2491659,85.359,85.3,0.60335969]
[1771186108040,4.2491659,85.359,85.289,10.5591]
[1771186108841,4.2491659,85.345,85.289,10.5591]
[1771186111544,10.5529,85.34,85.284,0.32587359]
[1771186111839,10.5529,85.34,85.219,164.3883]
[1771186111840,4.2491659,85.319,85.233,0.33435198]
[1771186112045,4.2491659,85.317,85.233,0.33435198]
[1771186112240,4.2491659,85.316,85.233,0.33435198]
[1771186112440,7.54066507,85.32,85.216,0.33579956]
[1771186112441,4.2491659,85.282,85.216,0.33579956]
[1771186112841,10.5618,85.268,85.216,0.33579956]
[1771186113244,4.2491659,85.267,85.199,0.33565132]
[1771186113443,4.2491659,85.267,85.201,0.33709805]
[1771186114141,4.2491659,85.284,85.211,0.47133878]
[1771186114342,4.2491659,85.284,85.221,0.47275869]
[1771186115745,4.2491659,85.284,85.23,0.43885455]
[1771186117947,10.5579,85.3,85.235,0.44138177]
[1771186118446,4.2491659,85.304,85.237,0.44273235]
[1771186118749,10.5561,85.314,85.241,0.44260975]
[1771186119048,4.2491659,85.313,85.241,0.44260975]
[1771186119844,4.2491659,85.306,85.231,0.39814491]
[1771186120037,6.78394892,85.333,85.261,4.13242065]
[1771186120244,124.9,85.335,85.261,4.13242065]
[1771186120946,35.36,85.357,85.261,4.13242065]
[1771186121146,10.5535,85.335,85.267,4.13242065]
[1771186121952,4.2491659,85.33,85.269,10.5616]
[1771186122252,4.2491659,85.33,85.267,4.13242065]
[1771186122852,4.2491659,85.33,85.26,7.54066507]
[1771186123848,4.26850341,85.323,85.26,7.54066507]
[1771186124342,4.26850341,85.323,85.261,4.05788025]
[1771186124751,10.5551,85.322,85.261,4.05788025]
[1771186126859,14.49143382,85.322,85.261,4.05788025]
[1771186127060,3.93633382,85.321,85.261,4.05788025]
[1771186128163,3.93633382,85.344,85.261,4.05788025]
[1771186128365,3.93633382,85.342,85.261,4.05788025]
[1771186128562,3.93633382,85.34,85.261,4.05788025]
[1771186129557,3.93633382,85.352,85.281,4.05788025]
[1771186129763,3.93633382,85.35,85.281,4.05788025]
[1771186130263,3.93633382,85.348,85.281,4.05788025]
[1771186130863,3.93633382,85.341,85.281,4.05788025]
[1771186131366,104.72,85.34,85.281,4.05788025]
[1771186131666,104.72,85.34,85.285,4.05788025]